Cogmind - Beta 14 @@@ ROGUE MODE // 2024.11.11 @ 14:38:01 Player: Fangrelle Result: Destroyed by as-48881 with Assembled Heavy Rifle Performance ------------- Evolutions (0) 0 Regions Visited (2) 400 Robots Destroyed (24) 120 Value Destroyed (697) 697 Prototype IDs (0) 0 Alien Tech Used (0) 0 Bonus (0) 0 TOTAL SCORE: 1217 Bonus ------- None Cogmind --------- Core Integrity 0/250 Matter 300/300 Energy 99/100 System Corruption 4% Temperature Cool (0) Movement Core (400) Ox7 Location -10/Mines Parts ------- > --- POWER (1) -------- (None) > --- PROPULSION (2) --- (None) > --- UTILITY (2) ------ Large Storage Unit Light Armor Plating > --- WEAPON (2) ------- (None) > --- INVENTORY (15) --- Improved Heat Sink High-capacity Matter Pod (200) High-capacity Matter Pod (57) Light Armor Plating Light Armor Plating Light Armor Plating Datajack Peak State ------------ > --- POWER ------------ Ion Engine > --- PROPULSION ------- Light Treads Light Treads > --- UTILITY ---------- Improved Heat Sink Large Storage Unit > --- WEAPON ----------- Small Laser Assault Rifle > --- INVENTORY -------- Wheel Wheel High-capacity Matter Pod Datajack Mining Laser [Rating: 9] Favorites ----------- Power Ion Engine Engine Ion Engine Propulsion Light Treads Treads Light Treads Leg Aluminum Leg Wheel Wheel Utility Large Storage Unit Device Improved Heat Sink Storage Large Storage Unit Protection Light Armor Plating Weapon Small Laser Energy Gun Small Laser Ballistic Gun Assault Rifle Special Weapon Mining Laser Build | -11 -10 -10 ------- Run | Yrd Mat Min Slots Evolved . | . . . Power . | . . . Propulsion . | . . . Utility . | . . . Weapon . | . . . Parts Attached 17 | . 11 6 Power 1 | . 1 . Engine 1 | . 1 . Core . | . . . Reactor . | . . . Propulsion 5 | . 2 3 Treads 3 | . 2 1 Leg . | . . . Wheel 2 | . . 2 Hover . | . . . Flight . | . . . Utility 7 | . 5 2 Device 1 | . 1 . Storage 2 | . 2 . Processor . | . . . Hackware . | . . . Protection 4 | . 2 2 Artifact . | . . . Weapon 4 | . 3 1 Energy Gun 2 | . 2 . Energy Cannon . | . . . Ballistic Gun 1 | . 1 . Ballistic Cannon . | . . . Launcher . | . . . Special Weapon 1 | . . 1 Impact Weapon . | . . . Slashing Weapon . | . . . Piercing Weapon . | . . . Special Melee Weapon . | . . . Unidentified Prototypes . | . . . Parts Lost 13 | . 5 8 Power 2 | . 2 . Propulsion 4 | . . 4 Utility 3 | . 1 2 Weapon 4 | . 2 2 Highest Loss Streak 8 | . 1 8 To Critical Strikes . | . . . Average Slot Usage (%) 85 | . 87 65 Engine 5 | . 6 . Treads 23 | . 24 15 Leg 3 | . 3 . Device 1 | . 1 . Storage 16 | . 17 14 Protection 8 | . 7 14 Energy Gun 15 | . 15 10 Ballistic Gun 8 | . 10 . Peak Build Rating 9 | . 9 6 Average Rating 6 | . 6 5 On Entrance 6 | 6 6 6 Naked Turns . | . . . Heaviest Build 34 | 13 34 25 Greatest Support 40 | 20 40 40 Greatest Overweight (x) 7 | . 1 7 Average Overweight (x) . | . . . Largest Inventory Capacity 15 | . 15 15 Average Capacity 14 | . 14 15 Most Carried 12 | . 12 12 Average Carried 7 | . 7 10 Final Capacity 15 | 8 15 15 Final Carried 12 | 6 12 7 Class Distribution -------------------- 100% | Mutant Dominant Class ---------------- Mutant | -10/Materials Mutant | -10/Mines Resources | -11 -10 -10 ----------- Run | Yrd Mat Min Matter Collected 770 | 200 550 20 Remotely . | . . . Salvage Created 910 | . 890 20 Parts 57 | . 57 . Haulers Intercepted 1 | . 1 . Recyclers Shooed . | . . . Parts Field Recycled . | . . . Retrieved Matter . | . . . Parts Self-Destructed . | . . . Prevented . | . . . Kills | -11 -10 -10 ------- Run | Yrd Mat Min Combat Hostiles Destroyed 22 | . 20 2 Guns 19 | . 18 1 AOE 2 | . 2 . Classes Destroyed 6 | . 5 1 Hauler 1 | . 1 . Operator 1 | . 1 . Watcher 2 | . 2 . Swarmer 3 | . 3 . Grunt 17 | . 17 . Assembled 2 | . . 2 Best Kill Streak 3 | . 3 1 Combat Bots Only 3 | . 3 1 Max Kills in Single Turn 2 | . 2 1 Gunslinging . | . . . Exploded 2 | . 2 . Melee . | . . . Uniques/NPCs Destroyed . | . . . Combat | -11 -10 -10 -------- Run | Yrd Mat Min Hostile Shots Fired 156 | . 117 39 Missed 39 | . 35 4 Damage Taken 1503 | . 978 525 Core 257 | . 190 67 Absorbed by Shields . | . . . Core Remaining (%) 100 | 100 . . Volleys Fired 95 | . 87 8 Largest 2 | . 2 1 Hottest 100 | . 80 100 Shots Fired 171 | . 163 8 Gun 166 | . 163 3 Cannon . | . . . Launcher . | . . . Special 5 | . . 5 Kinetic 75 | . 75 . Thermal 64 | . 59 5 Explosive . | . . . Electromagnetic 32 | . 29 3 Robot Hit Streak 14 | . 14 4 Robot Miss Streak 6 | . 6 2 Penetration Max . | . . . Secondary Targets 2 | . 2 . Max Gunslinging Chain 1 | . 1 . Shots Hit Robots 106 | . 103 3 Core Hits 46 | . 44 2 Critical Kills . | . . . Critical Parts Destroyed . | . . . Critical Strikes 1 | . 1 . Corrupt 1 | . 1 . Melee Attacks . | . . . Impact . | . . . Slashing . | . . . Piercing . | . . . Sneak Attacks . | . . . Combat Hostiles . | . . . Follow-up Attacks . | . . . Damage Inflicted 1413 | . 1360 53 Guns 1294 | . 1271 23 Cannons . | . . . Explosions 89 | . 89 . Melee . | . . . Ramming 6 | . . 6 Kinetic 606 | . 606 . Thermal 501 | . 477 24 Explosive . | . . . Electromagnetic 300 | . 277 23 Impact . | . . . Slashing . | . . . Piercing . | . . . Highest Corruption 4 | . . 4 Average Corruption 3 | . . 3 Corruption Purged . | . . . Corruption Blocked . | . . . Effects 1 | . . 1 Data Loss (minor) 1 | . . 1 Overload Shots . | . . . Overflow Damage 15 | . 15 . Projectiles . | . . . Explosions 15 | . 15 . Melee . | . . . Knockbacks . | . . . Impact . | . . . Kinetic . | . . . Secondary . | . . . Self-Inflicted Damage 53 | . 53 . Shots 1 | . 1 . Rammed 7 | . 1 6 Targets Rammed 7 | . 1 6 Kicked . | . . . Crushed . | . . . Highest Temperature 116 | . 66 116 Average Temperature 26 | . 22 41 Received Heat Transfer 972 | . 492 480 Siege Activations . | . . . Robots Corrupted 1 | . . 1 Combat Hostiles 1 | . . 1 Parts Fried 1 | . 1 . Impact Corruptions 1 | . . 1 Robots Melted . | . . . Combat Hostiles . | . . . Parts Melted . | . . . Heat Transferred 975 | . 925 50 Parts Sabotaged . | . . . Parts Stolen . | . . . Parts Stripped . | . . . Power Chain Reactions 1 | . 1 . Alert | -11 -10 -10 ------- Run | Yrd Mat Min Peak Influence 344 | . 344 101 Initial 101 | . . 101 Average 113 | . 117 82 Maximum Alert Level 1 | . 1 . Low Security (%) 84 | . 82 100 Level 1 15 | . 17 . Level 2 . | . . . Level 3 . | . . . Level 4 . | . . . Level 5 . | . . . High Security . | . . . Max Security . | . . . Squads Dispatched 5 | . 5 . Investigation 5 | . 5 . Extermination . | . . . Reinforcement . | . . . Assault . | . . . Garrison . | . . . Intercept . | . . . Searches Triggered . | . . . Construction Impeded . | . . . Haulers Reinforced . | . . . Active Scanning Responses . | . . . Cargo Convoy Interrupts . | . . . Stealth | -11 -10 -10 --------- Run | Yrd Mat Min Distress Signals 2 | . 2 . Communications Jammed . | . . . Distress Signals . | . . . Times Spotted 37 | . 29 8 Peak Tracking Total 9 | . 4 9 Tactical Retreats 4 | . 2 2 Traps | -11 -10 -10 ------- Run | Yrd Mat Min Traps Triggered 3 | . 3 . Indirectly . | . . . Trap Hack Attempts . | . . . Triggered . | . . . Disarmed . | . . . Reprogrammed . | . . . Reused . | . . . Traps Extracted . | . . . Installed . | . . . Triggered . | . . . Machines | -11 -10 -10 ---------- Run | Yrd Mat Min Machines Disabled . | . . . Max in Single Turn . | . . . Machines Repaired . | . . . Machines Dismantled . | . . . Machines Sabotaged . | . . . Overloaded Fab Kills . | . . . Hacking | -11 -10 -10 --------- Run | Yrd Mat Min Machines Accessed 10 | . 10 . Terminals 8 | . 8 . Fabricators . | . . . Repair Stations . | . . . Recycling Units 2 | . 2 . Scanalyzers . | . . . Garrison Access . | . . . Total Hacks 37 | . 37 . Successful 20 | . 20 . Failed 17 | . 17 . Catastrophic 1 | . 1 . Database Lockouts . | . . . Manual 35 | . 35 . Terminals 33 | . 33 . Fabricators . | . . . Repair Stations . | . . . Recycling Units 4 | . 4 . Scanalyzers . | . . . Garrison Access . | . . . Terminal Hacks 1 | . 1 . Robot Analysis 1 | . 1 . Fabricator Hacks . | . . . Repair Station Hacks . | . . . Recycling Unit Hacks 2 | . 2 . Report Inventory 2 | . 2 . Scanalyzer . | . . . Garrison Access Hacks . | . . . Unauthorized Hacks 17 | . 17 . Terminals 15 | . 15 . Assimilate 6 | . 6 . Botnet 7 | . 7 . Operators 2 | . 2 . Fabricators . | . . . Repair Stations . | . . . Recycling Units 2 | . 2 . Tunnel 2 | . 2 . Scanalyzers . | . . . Garrison Access . | . . . Data Cores Recovered 1 | . 1 . Used 1 | . 1 . Hacking Detections 8 | . 8 . Full Trace Events . | . . . Feedback Events . | . . . Feedback Blocked . | . . . Robot Schematics Acquired . | . . . Robots Built . | . . . Authchips . | . . . Time . | . . . Total Robot Build Rating . | . . . Part Schematics Acquired . | . . . Parts Built . | . . . Authchips . | . . . Time . | . . . Total Part Build Rating . | . . . Parts Repaired . | . . . Time . | . . . Parts Recycled . | . . . Recycled Matter . | . . . Retrieved Matter . | . . . Retrieved Components . | . . . Parts Scanalyzed . | . . . Part Schematics Acquired . | . . . Parts Damaged . | . . . Bothacking | -11 -10 -10 ------------ Run | Yrd Mat Min Used RIF Installer . | . . . Robots Hacked . | . . . Non-combat . | . . . Combat . | . . . Robot Hacks Applied . | . . . Relay Couplers Released . | . . . Fabnet Peak Effective % . | . . . Robots Rewired . | . . . Allies Hacked . | . . . Hacks Repelled . | . . . Allies | -11 -10 -10 -------- Run | Yrd Mat Min Total Allies 1 | . 1 . Largest Group 1 | . 1 . Highest-Rated Group 10 | . 10 . Highest-Rated Ally 10 | . 10 . Total Orders 1 | . 1 . STAY 1 | . 1 . Ally Attacks . | . . . Total Damage . | . . . Kills . | . . . Allies Corrupted . | . . . Allies Melted . | . . . Intel | -11 -10 -10 ------- Run | Yrd Mat Min Robot Analysis Total 1 | . 1 . Derelict Logs Recovered . | . . . Drone Launches . | . . . Drone Recoveries . | . . . Exploration | -11 -10 -10 ------------- Run | Yrd Mat Min Turns Passed 1874 | . 1655 219 Spaces Moved 921 | 1 804 116 Core 1 | . . 1 Treads 742 | . 678 64 Legs 127 | 1 126 . Wheels 51 | . . 51 Hover . | . . . Flight . | . . . Fastest Speed 95 | 120 120 95 Average Speed 152 | 120 154 137 Slowest Speed 400 | 120 190 400 Overloaded Moves . | . . . Propulsion Burnouts . | . . . Robots Hopped . | . . . Cave-ins Triggered . | . . . Exploration Rate (%) 42 | 1 95 32 Regions Visited 2 Branch Regions 1 Pre-discovered Areas 2 | . 2 . Known Exits Taken . | . . . Unknown Exits Taken 2 | 1 1 . Scrap Searched . | . . . Spaces Dug . | . . . Terrain Destroyed 6 | . 5 1 Melee . | . . . Projectile 1 | . . 1 AOE 5 | . 5 . Terrain Rammed . | . . . Walls Destroyed . | . . . Machines Disabled . | . . . Actions | -11 -10 -10 --------- Run | Yrd Mat Min Total 1204 | . 1054 150 Wait 149 | . 135 14 Move 919 | . 803 116 Hop . | . . . Pick Up 10 | . 10 . Fast Attach 6 | . 6 . Attach 7 | . 2 5 Detach 1 | . 1 . Swap 4 | . 3 1 Drop 6 | . 6 . Fire 95 | . 87 8 Melee . | . . . Ram 1 | . . 1 Kick . | . . . Crush 6 | . 1 5 Escape Stasis . | . . . Rewire . | . . . Trap . | . . . Miscellaneous . | . . . Route ------- -11/Scrapyard -10/Materials (discovered 4 exits: [*Mat x2] / [*Min x2]) -10/Mines History --------- Turn | Location | Event 1 | -11/Scrapyard | Discovered new exit (range 0) 1 | -11/Scrapyard | Entered Materials 287 | -10/Materials | Discovered new exit (range 15) 315 | -10/Materials | Build established: Mutant 328 | -10/Materials | Discovered new exit (range 14) 892 | -10/Materials | Discovered new exit (range 12) 1218 | -10/Materials | Core integrity fell below 50% 1548 | -10/Materials | Discovered new exit (range 4) 1656 | -10/Materials | Entered Mines 1696 | -10/Mines | Met a Derelict bent on vengeance 1749 | -10/Mines | Assembled infested the area 1788 | -10/Mines | Core integrity fell below 20% 1875 | -10/Mines | Destroyed by as-48881 with Assembled Heavy Rifle Last Messages --------------- 01784_ as-82516 sneak attacks. 01784_ T-07 Excavator destroyed. 01785_ Critical hit (Burn: +80). 01796_ Lgt. Armor Plating destroyed. 01796_ System corrupted by crushing effect (+1). 01796_ Knocked back. 01815_ as-82516 destroyed. 01819_ EM Pulse Gun destroyed. 01823_ Acquired 20 matter. 01837_ Lgt. Armor Plating destroyed. 01852_ as-24812 misfires. 01858_ Mining Laser destroyed. 01859_ Slammed into as-24812. 01861_ Wheel destroyed. 01861_ Slammed into as-24812. 01870_ Lgt. Treads destroyed. 01871_ Slammed into as-24812. 01871_ Destroyed Asb. F-torch. 01871_ as-24812 system corrupted by crushing effect. 01872_ as-24812 system terminally corrupted. Map ----- +----------------------------------------------------+ | ????????????????????????????????????? | | ????????????????????????????????????? | | ????????????????????????????????????? | | ????????????????????????????????????? | | ????????????????????????????????????? | | ????????????????????????????????????? | | ????????????????????????????????????? | | ????????????????????????????????????? | | ????????????????????????????????????? | | ????????????????????????????????????? | | ????????????????????????????????????? | | ????????????????????????????????????? | | ????????????????????????????????????? | | ????????????????????????????????????? | | ????????????????????????????????????? | | ????????????????????????????????????? | | ????????????????????????????????????? | | ????????????????????????????????????? | | ????????????????????????????????????? | | ????????????????????????????????????? | | ????????????????????????????????????? | | #???????????????????????????????????? | | #???????###???????????##########????? | | ##??????# ##?????????## ##???? | | #??????# #????????## #???? | | ######## #???????## @ #???? | | #??????## #; ##???? | | ##????## #### ##????? | | # ####### ###### ##?####?????? | | # #????## #??????????? | | # #???## #??????????? | | # ##### a ## #??????????? | | # ###### #?????????? | | ######## ##????# #????????? | | ??????## ##????? #???????? | | ????### ##????? #???????? | | ??### #????? #???????? | | ?## #????? ##???????? | | ?# ##????? ### ##????????? | | ?# ###?????????### #?????????? | | ?# ##?????????????? #?????????? | | # #??????????????? #?????????? | | # #????????????????? ???????????? | | ## ##?????????????????????????????? | | ?####???????????????????????????????? | | ????????????????????????????????????? | | ????????????????????????????????????? | | ????????????????????????????????????? | | | | | +----------------------------------------------------+ Best States ------------- Heat Dissipation 39 Energy Generation 10 Energy Capacity 250 Matter Stores 300 Matter Capacity 300 Sight Range 16 Terrain Scan Density 10 Armor Coverage 150 Evasion (%) 55 Recoil Reduction 2 Item Schematics ----------------- None Robot Schematics ------------------ None Fabricated ------------ Nothing Alien Tech Used ----------------- None Achievements -------------- None Challenges ------------ None Game ------ Seed GravityRelayWell Manual? 0 Play Time 00:17:20 Cumulative 50.5 hours Start 2024.11.11 @ 14:23:21 End 2024.11.11 @ 14:38:01 Sessions 1 Manual Loads 0 Difficulty Rogue Special Mode None Game No. 97 Rogue 97 Adventurer 0 Explorer 0 Win Type - Total 0 Types 0/0/0/0/0/0/0/0/0 Lore% 37 Gallery% 31 Achievement% 32 Wizard Run 0 Options --------- Layout 0 ASCII 0 Keyboard 0 Movement Mouse Keybinds 0 Fullscreen 1 Font 24/Smallcaps Map View 91x25 Zoom Use 91% Tactical HUD 1 Map Filters NONE Filters NONE Steam 1 RUN: f91ac259-5178-481c-b95f-7652d8cc170f